[Event "DFMM-LV 2023"]
[Site "Braunfels"]
[Date "2023.06.09"]
[Round "1.1"]
[White "Birkholz, Olga"]
[Black "Agrest, Inna"]
[Result "1/2-1/2"]
[Annotator "TA"]
[ECO "A49"]
[WhiteElo "2005"]
[BlackElo "2287"]
[PlyCount "99"]
[EventDate "2023.06.09"]
[EventType "team-tourn"]
[EventCountry "GER"]
[SourceTitle "playchess.com"]
[Source "ChessBase"]
[SourceQuality "1"]
[TimeControl "40/5400+30:1800+30"]

{[%evp 12,99,29,22,25,22,41,39,46,43,33,29,33,0,0,-25,-36,-59,-37,-55,-53,-39,-37,-89,-74,-129,-100,-145,-42,-122,-65,-128,-119,-109,-59,-114,0,0,0,0,7,0,68,38,83,73,82,0,0,-37,-33,-31,-22,-21,-22,-23,-32,-20,-29,-16,-12,-25,24,39,52,49,47,55,117,101,150,0,0,-14,-15,-21,0,-11,0,0,0,0,48,0,0,0,0,0,0,0]} 1. Nf3 {[%emt 0:00:08]} Nf6 {[%emt 0:00:08]} 2. g3 {[%emt 0:00:05]} g6 {[%emt 0:00:06]} 3. Bg2 {[%emt 0:00:02]} Bg7 {[%emt 0:00:06]} 4. O-O {[%emt 0:00:05]} O-O {[%emt 0:00:04]} 5. d4 {[%emt 0:00:07]} d6 {[%emt 0:00:17]} 6. b3 {[%emt 0:01:03]} a5 {[%emt 0:01:45][%cal Ba7a5,Ba5a4,Ba4a3][%mdl 32]} 7. Bb2 {[%emt 0:00:13]} a4 {[%emt 0:01:01] A49: 1 d4 Nf6 2 Nf3 g6 3 g3: Anti-King's Indian systems.} 8. c4 {[%emt 0:00:25]} Nbd7 {[%emt 0:00:52][%cal Bb8d7,Bd7f8,Bf8h7][%mdl 32]} 9. Qc2 {[%emt 0:02:58]} (9. bxa4 Nb6 $15) 9... c6 {[%emt 0:06:37][%cal Oe7e5] White is slightly better.} 10. Nc3 {[%emt 0:09:46]} (10. bxa4 Qa5 $11) 10... a3 {[%emt 0:02:50]} 11. Bc1 {[%emt 0:00:01] [#]} e5 $146 {[%emt 0:00:26]} ({Predecessor:} 11... Qa5 12. h3 e5 13. e3 Re8 14. Rb1 Nf8 15. dxe5 dxe5 16. b4 Qc7 17. Rd1 Bf5 {1-0 Mahdavi,R (2324)-Mortazavi,A (2333) Titled Tuesday intern op 11th Apr Early blitz 2023 (3)}) 12. e3 {[%emt 0:00:14]} Re8 {[%emt 0:02:59]} 13. Nb1 {[%emt 0:04:48]} Nf8 {[%emt 0:05:02]} 14. Nxa3 {[%emt 0:00:49]} e4 {[%emt 0:15:54]} 15. Nd2 {[%emt 0:02:57][%cal Rd2e4]} Bf5 {[%emt 0:02:23][%mdl 1024] Black has compensation.} 16. Bb2 {[%emt 0:03:02]} h5 {[%emt 0:04:35]} 17. Rfe1 {[%emt 0:05:24]} (17. Rac1 $15) 17... N8h7 $17 {[%emt 0:03:47][%cal Oh5h4]} 18. Qc3 {[%emt 0:07:03]} (18. Nab1 $142) 18... Qd7 {[%emt 0:04:41][%cal Oh5h4] aiming for ...h4!} 19. f3 {[%emt 0:06:53]} Bh3 {[%emt 0:06:32]} (19... Ng5 $1 $17 {Threatens to win with ...exf3.} 20. Rf1 exf3 21. Nxf3 Nxf3+ 22. Rxf3 d5) 20. Re2 {[%emt 0:09:25] [#]} (20. fxe4 Bxg2 21. Kxg2 Ng5 $19) (20. Nxe4 Nxe4 21. fxe4 Bxg2 22. Kxg2 h4 $17) (20. f4 $15) 20... h4 {[%emt 0:05:12]} 21. f4 {[%emt 0:14:10]} (21. Nxe4 $2 Nxe4 22. fxe4 hxg3 $19) (21. fxe4 $2 hxg3 22. Bxh3 Qxh3 $19) (21. gxh4 $15 Bxg2 22. Rxg2) 21... Qg4 {[%emt 0:06:27][%csl LRe2,LRg3]} 22. Rf2 {[%emt 0:01:12]} Nh5 {[%emt 0:04:58]} (22... hxg3 $17 23. hxg3 Qxg3) 23. Nf1 {[%emt 0:04:01]} (23. Nxe4 $2 {perishes.} Bxg2 24. Rxg2 Rxe4 25. gxh4 Qf3 $19) (23. Bxh3 $1 $15 Qxh3 24. gxh4) 23... Bf6 {[%emt 0:09:01]} (23... hxg3 $17 24. Nxg3 Nxg3 25. Bxh3 Qxh3 26. hxg3 Nf6) 24. Bxh3 $11 {[%emt 0:03:25]} Qxh3 {[%emt 0:00:08]} 25. Rg2 {[%emt 0:00:02]} hxg3 {[%emt 0:14:05]} 26. hxg3 {[%emt 0:00:23]} (26. Nxg3 {simplifies} Ng7 27. Qd2 d5 28. cxd5 cxd5 29. Nb5) 26... g5 {[%emt 0:00:23]} (26... Be7 $11) 27. Nc2 {[%emt 0:01:15]} (27. Qd2 {simplifies} Qg4 28. Nc2 d5 29. cxd5 cxd5 30. Nh2) 27... Kh8 {[%emt 0:00:59]} 28. Qe1 {[%emt 0:03:58] And now Qd1 would win.} Rg8 {[%emt 0:00:53] [#]} 29. Rh2 {[%emt 0:03:57]} (29. f5 $1 $16) 29... Qg4 {[%emt 0:00:27][%cal Rg5f4]} 30. Qd1 {[%emt 0:02:49]} Qxd1 {[%emt 0:00:41]} 31. Rxd1 {[%emt 0:00:02] [#]} Nxg3 {[%emt 0:00:34][%mdl 64] Remove Defender} 32. a4 {[%emt 0:15:48]} ({Don't play} 32. Nxg3 gxf4 33. Ba3 (33. exf4 $2 Rxg3+ 34. Rg2 Rxg2+ 35. Kxg2 Rxa2 $17) 33... Rxg3+ 34. Kf2 Rf3+ 35. Ke2 Rxa3 36. Nxa3 Rxe3+ 37. Kf1 (37. Kf2 $2 Kg7 $19) 37... Kg7 $17) 32... gxf4 {[%emt 0:00:38]} 33. exf4 {[%emt 0:00:00]} Ne2+ {[%emt 0:01:22][%mdl 64] Discovered Attack (Double check)} 34. Kf2 {[%emt 0:00:00][%cal Bg1f2,Bf2e2,Be2e3][%mdl 32]} Nxf4 {[%emt 0:00:05] ...Nd3+ is the strong threat.} 35. Ba3 {[%emt 0:00:00]} Nd3+ {[%emt 0:00:53]} (35... c5 {is more complex.} 36. Ke3 Ne6 37. dxc5 Be5) 36. Ke2 {[%emt 0:00:00]} Nf4+ {[%emt 0:00:53]} (36... Rg1 $142) 37. Ke3 {[%emt 0:00:00]} Bg5 {[%emt 0:00:28]} 38. Bxd6 {[%emt 0:00:00]} Nd5+ {[%emt 0:00:39][%mdl 64] Discovered Attack (Double check)} 39. Kf2 $1 {[%emt 0:00:00]} Nc3 {[%emt 0:00:11]} (39... Rad8 $1 $14 40. Be5+ f6 41. cxd5 fxe5) 40. Re1 $16 {[%emt 0:00:00] Strongly threatening Ng3.} e3+ {[%emt 0:00:18] [#]} ({Black should play} 40... Rg6) 41. Rxe3 {[%emt 0:25:51]} ({White must play} 41. Kf3 $1 $16 Rg6 42. Be5+ f6 43. Bd6) 41... Nd1+ {[%emt 0:05:44]} 42. Kf3 {[%emt 0:00:00] Hoping for Re1.} Nxe3 {[%emt 0:01:03]} 43. Ncxe3 {[%emt 0:00:00]} Rg6 {[%emt 0:01:25]} (43... Rae8 $5 {[%cal Rg8g6]}) 44. Nf5 {[%emt 0:00:00]} Rd8 {[%emt 0:02:13]} 45. c5 {[%emt 0:00:00]} Kg8 {[%emt 0:02:39]} 46. N1g3 {[%emt 0:00:00]} Rd7 {[%emt 0:11:19]} (46... Re8 $11 {should be considered.}) 47. Ne4 {[%emt 0:00:00]} (47. b4 $1 $14 {deserves consideration.}) 47... Bd8 $11 {[%emt 0:01:13] The position is equal.} 48. Nh6+ {[%emt 0:00:00] Excellent horsemanship.} Kg7 {[%emt 0:00:22]} 49. Nf5+ {[%emt 0:00:00]} Kg8 {[%emt 0:00:13]} 50. Nh6+ {[%emt 0:00:00] Weighted Error Value: White=0.23 (precise) /Black=0.22 (precise)} 1/2-1/2

[Event "DFMM-LV 2023"]
[Site "Braunfels"]
[Date "2023.06.09"]
[Round "1.2"]
[White "Voicu-Jagodzinsky, Carmen"]
[Black "Stangl, Anita"]
[Result "0-1"]
[Annotator "TA"]
[ECO "D46"]
[WhiteElo "2297"]
[BlackElo "2009"]
[PlyCount "80"]
[EventDate "2023.06.09"]
[EventType "team-tourn"]
[EventCountry "GER"]
[SourceTitle "playchess.com"]
[Source "ChessBase"]
[SourceQuality "1"]
[TimeControl "40/5400+30:1800+30"]

{[%evp 18,80,0,-2,0,-10,0,0,52,48,44,21,83,73,75,78,92,33,47,51,46,0,105,104,82,0,0,0,0,-14,-33,-186,-192,-188,-196,-197,-186,-214,-129,-156,-118,-105,-120,-379,-391,-852,-825,-799,-721,-719,-649,-614,-602,-1035,-1002,-1087,-847,-1007,-1010,-983,-975,-1010,-993,-988,-981]} 1. d4 {[%emt 0:00:02]} e6 {[%emt 0:00:04]} 2. c4 {[%emt 0:00:13]} d5 {[%emt 0:00:05]} 3. Nc3 {[%emt 0:00:11]} c6 {[%emt 0:00:06]} 4. e3 {[%emt 0:00:18]} Bd6 {[%emt 0:02:02]} 5. Qc2 {[%emt 0:00:41]} Nd7 {[%emt 0:08:00]} 6. Bd2 {[%emt 0:11:21]} Ngf6 {[%emt 0:02:47]} 7. Nf3 {[%emt 0:04:38]} O-O {[%emt 0:02:09]} 8. Be2 {[%emt 0:02:38]} dxc4 {[%emt 0:03:12]} 9. Bxc4 {[%emt 0:01:19]} e5 {[%emt 0:00:42]} 10. O-O {[%emt 0:02:15]} exd4 {[%emt 0:09:33] D46: Semi-Slav: 5 e3 Nbd7 6 Bd3, Black avoids the Meran.} 11. Nxd4 {[%emt 0:09:30]} Ne5 {[%emt 0:08:58]} 12. Be2 {[%emt 0:00:38] [#]} Nfg4 $146 {[%emt 0:12:56]} ({Black should play} 12... Re8 $11) ({Predecessor:} 12... Bg4 13. Bxg4 Nexg4 14. h3 Ne5 15. Rad1 Re8 16. e4 Bc5 17. Nb3 Bb6 18. Na4 Qd3 19. Qxd3 Nxd3 20. Nxb6 axb6 {½-½ Obsivac,J (2334)-Volodin,V (2245) Cartak IM 2005 (2)}) 13. f4 $14 {[%emt 0:02:33]} Ng6 {[%emt 0:10:36][%cal Og6f4]} (13... Qh4 $2 14. h3 $18 (14. fxe5 $2 Qxh2#)) 14. h3 {[%emt 0:01:43]} (14. Bxg4 $5 Bxg4 15. h3 $11) 14... Nh6 {[%emt 0:03:43]} (14... Nf6 $11) 15. Nf3 {[%emt 0:17:34]} (15. Rad1 {seems wilder.} Bxf4 16. Nxc6 Qc7 17. exf4 Qxc6 18. Bc1) 15... Re8 {[%emt 0:09:31]} 16. Bd3 {[%emt 0:11:39]} Bc5 {[%emt 0:06:42]} 17. Ne4 {[%emt 0:05:26]} (17. Rad1 $1 $16) 17... Bb6 {[%emt 0:00:26]} 18. Kh1 $1 {[%emt 0:05:28]} Nf5 {[%emt 0:03:56]} 19. Rfe1 {[%emt 0:00:37]} (19. Rae1 $14) 19... Nfh4 {[%emt 0:02:41]} (19... h6 $11 {keeps the balance.}) 20. Neg5 $16 {[%emt 0:00:50] Nxh4 would be deadly.} h6 {[%emt 0:00:43] [#]} 21. Nxh4 {[%emt 0:04:14]} ({Better is} 21. Nxf7 $1 $16 Kxf7 22. Rf1) 21... Nxh4 $11 {[%emt 0:00:26]} 22. Bh7+ {[%emt 0:12:59]} Kf8 {[%emt 0:00:10]} 23. Ne4 {[%emt 0:00:15] aiming for Bb4+.} (23. Nxf7 $5 Kxf7 24. f5 $11) 23... g6 {[%emt 0:07:32][%cal Oe8e4] Strongly threatening ...Rxe4!} 24. Rad1 $2 {[%emt 0:01:24]} (24. Bb4+ $15 c5 25. Rad1 (25. Nxc5 Kg7 $15) (25. Bxc5+ Bxc5 26. Qxc5+ Qe7 $15)) 24... Qe7 $40 {[%emt 0:00:44][%mdl 128] Black has strong attack.} 25. Ng3 {[%emt 0:02:27] Against Bf5} Kg7 {[%emt 0:03:11]} 26. Bxg6 {[%emt 0:00:16]} fxg6 {[%emt 0:00:33]} 27. Bc3+ {[%emt 0:00:01]} Kg8 {[%emt 0:00:31]} 28. e4 {[%emt 0:00:22] Prevents Nf5.} Be6 {[%emt 0:00:35][%cal Oa8d8,Bc8e6,Be6f7,Bf7d5,Bd5g2][%mdl 32] White must now prevent ...Rad8!} 29. f5 {[%emt 0:00:12] [#]} Bf7 {[%emt 0:00:25] Hoping for ...Qg5.} ({Don't play} 29... Bxa2 $6 30. fxg6 Rad8 31. Nf5 Nxf5 32. exf5 Rxd1 33. Qxd1 $11) 30. e5 $2 {[%emt 0:00:57][%mdl 8192]} (30. fxg6 $17 Bxg6 31. Qd2) 30... Bd5 {[%emt 0:00:33]} (30... Bxa2 31. Qa4 Bd5 32. f6 Bxg2+ 33. Kh2 Nf3+ 34. Kxg2 Nxe1+ 35. Rxe1 $18) 31. fxg6 $2 {[%emt 0:01:21]} (31. f6 Bxg2+ 32. Qxg2 Nxg2 33. fxe7 Nxe1 34. Rxe1) 31... Bxg2+ {[%emt 0:00:22] Black is clearly winning.} 32. Kh2 {[%emt 0:00:01]} Qe6 {[%emt 0:00:14][%csl Gg2][%cal Re6h3]} 33. Nf5 {[%emt 0:00:32]} Qxf5 {[%emt 0:00:33]} 34. Qxf5 {[%emt 0:01:10]} Nxf5 {[%emt 0:00:04]} 35. Rd7 {[%emt 0:00:15]} Bd5 {[%emt 0:00:43] ...Re6 is the strong threat.} 36. Rf1 {[%emt 0:00:47]} Ne7 {[%emt 0:01:16]} 37. e6 {[%emt 0:00:21]} Bxe6 {[%emt 0:00:38]} 38. Rxb7 {[%emt 0:00:44]} Rab8 {[%emt 0:00:27]} 39. Rxb8 {[%emt 0:00:21]} Bc7+ {[%emt 0:00:33] This pair of bishops is nice.} 40. Kg1 {[%emt 0:00:33]} Bxb8 {[%emt 0:00:01] Weighted Error Value: White=0.63/Black=0.37} 0-1

[Event "DFMM-LV 2023"]
[Site "Braunfels"]
[Date "2023.06.09"]
[Round "1.3"]
[White "Braun, Kristin"]
[Black "Zozulia, Anna"]
[Result "0-1"]
[Annotator "TA"]
[ECO "B32"]
[WhiteElo "1875"]
[BlackElo "2236"]
[PlyCount "52"]
[EventDate "2023.06.09"]
[EventType "team-tourn"]
[EventCountry "GER"]
[SourceTitle "playchess.com"]
[Source "ChessBase"]
[SourceQuality "1"]
[TimeControl "40/5400+30:1800+30"]

{[%evp 22,52,8,0,26,-13,-18,0,-6,-40,-16,-94,-71,-208,-162,-191,-170,-433,-438,-412,-365,-387,-391,-565,-571,-748,-747,-776,-599,-611,-591,-550,-596]} 1. e4 {[%emt 0:00:01]} c5 {[%emt 0:00:19]} 2. Nf3 {[%emt 0:00:04][%cal Bg1f3,Bf3d4,Bd4b5,Bb5a3,Ba3c2][%mdl 32]} Nc6 {[%emt 0:00:41]} 3. d4 {[%emt 0:00:15]} cxd4 {[%emt 0:00:14]} 4. Nxd4 {[%emt 0:00:05]} e5 {[%emt 0:01:49]} 5. Nb5 {[%emt 0:02:09]} d6 {[%emt 0:00:05]} 6. c4 {[%emt 0:03:32]} Be7 {[%emt 0:02:33]} 7. N1c3 {[%emt 0:00:12]} a6 {[%emt 0:00:05]} 8. Na3 {[%emt 0:00:10]} Be6 {[%emt 0:03:37]} 9. Nc2 {[%emt 0:05:17]} Bg5 {[%emt 0:04:42]} 10. Ne3 {[%emt 0:04:47]} Nd4 {[%emt 0:03:24]} 11. Ne2 {[%emt 0:08:39]} Nc6 {[%emt 0:27:49]} 12. Nc3 {[%emt 0:00:25]} Nge7 {[%emt 0:02:59] B32: Sicilian: Löwenthal and Kalashnikov Variations.} 13. Qh5 {[%emt 0:15:24] [#]} Bxe3 $146 {[%emt 0:11:37]} ({Predecessor:} 13... h6 14. h4 Bxe3 15. Bxe3 Nd4 16. Qd1 Nec6 17. Bd3 O-O 18. Ne2 f5 19. Bxd4 Nxd4 20. Nxd4 exd4 21. exf5 Bxf5 22. Bxf5 Rxf5 23. Qxd4 {0-1 Pasti,A (2332)-Petrov,M (2523) Miercurea Ciuc GP RO Stage 3 2022 (3)}) 14. Bxe3 {[%emt 0:00:29]} O-O {[%emt 0:02:42] The position is equal.} 15. Nd5 {[%emt 0:20:43]} b5 {[%emt 0:08:45]} 16. Bb6 {[%emt 0:06:33]} ({Much worse is} 16. cxb5 Bxd5 17. exd5 Nb4 $15) (16. Qd1 $11 {remains equal.}) 16... Qd7 {[%emt 0:00:30]} 17. Rd1 {[%emt 0:09:19]} (17. cxb5 $2 {too greedy.} Bxd5 18. bxc6 (18. exd5 $2 {perishes.} Nb4 $19) 18... Qxc6 19. exd5 Qxb6 $19) (17. Qd1 $17) 17... Bg4 {[%emt 0:04:41]} 18. Qg5 {[%emt 0:01:26] [#] And now Nf6+ would win.} f6 {[%emt 0:00:34]} 19. Nxf6+ {[%emt 0:01:53]} (19. Qd2 Bxd1 20. Qxd1) 19... Rxf6 $19 {[%emt 0:00:05]} 20. f3 {[%emt 0:00:08]} Be6 {[%emt 0:01:23]} 21. cxb5 {[%emt 0:01:53]} axb5 {[%emt 0:00:44]} 22. Bxb5 {[%emt 0:00:52]} (22. Qd2 {was necessary.}) 22... Qb7 {[%emt 0:04:39] Black is clearly winning.} 23. Bxc6 {[%emt 0:02:02]} Nxc6 {[%emt 0:02:29]} 24. Bf2 {[%emt 0:00:40]} Rxa2 {[%emt 0:01:18]} 25. O-O {[%emt 0:00:26]} Bc4 {[%emt 0:00:23]} 26. Rfe1 {[%emt 0:00:21]} Qxb2 {[%emt 0:00:48] White got outplayed after the opening.   Weighted Error Value: White=0.81/Black=0.28 (precise)} 0-1

[Event "DFMM-LV 2023"]
[Site "Braunfels"]
[Date "2023.06.09"]
[Round "1.4"]
[White "Cosma, Elena-Luminita"]
[Black "Dirmeier, Carolin"]
[Result "1-0"]
[Annotator "TA"]
[ECO "A86"]
[WhiteElo "2222"]
[BlackElo "1941"]
[PlyCount "71"]
[EventDate "2023.06.09"]
[EventType "team-tourn"]
[EventCountry "GER"]
[SourceTitle "playchess.com"]
[Source "ChessBase"]
[SourceQuality "1"]
[TimeControl "40/5400+30:1800+30"]

{[%evp 12,71,37,21,27,-12,-24,-25,-11,-27,-12,-17,-18,-18,-19,-27,4,-24,-20,-30,-29,-39,-16,-49,-39,-41,-37,-49,-59,-29,-30,-54,0,0,-4,-15,-22,-13,-8,-3,0,-18,-10,-12,0,0,0,0,0,0,146,155,152,161,579,549,29988,29989,29989,29990,29993,29994]} 1. d4 {[%emt 0:00:03]} f5 {[%emt 0:00:05]} 2. g3 {[%emt 0:00:08]} Nf6 {[%emt 0:00:06]} 3. Bg2 {[%emt 0:00:07]} g6 {[%emt 0:00:04]} 4. c4 {[%emt 0:00:08]} Bg7 {[%emt 0:00:05]} 5. Nc3 {[%emt 0:00:06]} O-O {[%emt 0:00:14]} 6. Nh3 {[%emt 0:00:11]} Nc6 {[%emt 0:01:54]} 7. d5 {[%emt 0:11:15]} Ne5 {[%emt 0:00:27] A86: Dutch Defence: Leningrad System: Unusual lines and 5 Nh3.} 8. c5 {[%emt 0:00:04]} c6 {[%emt 0:10:08]} 9. Bf4 {[%emt 0:13:08]} Nf7 {[%emt 0:03:30] Black has an edge.} 10. O-O {[%emt 0:08:33] [#]} Qa5 $146 {[%emt 0:19:54]} ({Predecessor:} 10... e5 11. Be3 Qe7 12. d6 Qe8 13. Ng5 Nd8 14. a4 h6 15. Nf3 g5 16. a5 Ng4 {½-½ Kraemer,M (2436)-Kalinitschew,S (2469) Berlin Unicorn op 2008 (7)}) 11. Rc1 {[%emt 0:04:39]} e6 {[%emt 0:22:42]} 12. dxe6 {[%emt 0:14:49]} dxe6 {[%emt 0:01:47]} 13. Qb3 {[%emt 0:04:00]} Kh8 {[%emt 0:05:49]} ({Much less strong is} 13... Qxc5 14. Nd5 Qa5 15. Ne7+ Kh8 16. Nxc8 Raxc8 17. Qxb7 $14 (17. Qxe6 Qb5 $11)) 14. Rfd1 {[%emt 0:09:45]} e5 {[%emt 0:01:07]} 15. Bd2 {[%emt 0:01:47][%cal Oc3e4]} Qc7 {[%emt 0:02:12]} ({Resist} 15... Qxc5 16. Nd5 Qd6 17. Bb4 $14) 16. e4 {[%emt 0:02:31]} Qe7 {[%emt 0:03:35]} 17. Ng5 {[%emt 0:06:57]} Nxg5 {[%emt 0:03:38]} (17... f4 $5 {[%cal Rf7g5]} 18. Nxf7+ (18. gxf4 exf4 19. Bxf4 Nxg5 $11) 18... Rxf7 $11) 18. Bxg5 {[%emt 0:00:05]} Be6 {[%emt 0:01:09]} 19. Qb4 {[%emt 0:00:45]} a5 {[%emt 0:03:35]} 20. Qa3 {[%emt 0:00:07]} Qf7 {[%emt 0:03:40][%cal Of5f4]} 21. Rd6 {[%emt 0:06:55]} Nxe4 {[%emt 0:03:49]} (21... f4 $15) 22. Nxe4 $11 {[%emt 0:02:52]} fxe4 {[%emt 0:00:04]} 23. Be3 {[%emt 0:00:52] Active counter play!} Bxa2 {[%emt 0:02:08]} 24. Bxe4 {[%emt 0:01:07]} Bd5 {[%emt 0:00:49]} 25. Qd3 {[%emt 0:00:13][%cal Re4d5]} Be6 {[%emt 0:03:02]} 26. Rd1 {[%emt 0:03:35][%cal Bc1d1,Bd1d3,Bd3f3][%mdl 32]} Rfe8 {[%emt 0:01:24]} (26... Bg4 {keeps more tension.} 27. Rd2 Bh3 28. Bg2 Be6) 27. Qc3 {[%emt 0:00:30]} Qc7 {[%emt 0:01:13]} 28. Bg5 {[%emt 0:01:41][%cal Be3g5,Bg5f6,Bf6g7,Bg7h6][%mdl 32]} a4 {[%emt 0:01:05]} 29. h4 {[%emt 0:01:54]} Qf7 {[%emt 0:01:07]} 30. R1d3 {[%emt 0:01:38]} Bf5 {[%emt 0:02:58] [#] Black is weak on the dark squares} (30... Rf8 $11 {keeps the balance.} 31. Qd2 Bg4) 31. Rf3 $1 $16 {[%emt 0:01:39] g4 would be deadly.} Qa2 {[%emt 0:00:31]} 32. Bxf5 {[%emt 0:00:55]} e4 $2 {[%emt 0:01:20] [#]} (32... gxf5 33. Bf6 Bxf6 34. Rxf6 Rad8) 33. Bf6 $1 $18 {[%emt 0:00:34]} exf3 {[%emt 0:00:24]} (33... Qf7 34. Bxg6) 34. Bxg7+ {[%emt 0:00:06] A strong pair of Bishops. White mates.} Kg8 {[%emt 0:00:12] [#]} 35. Bh6 $1 {[%emt 0:00:49][%csl Gh6][%cal Rc3g7]} Re7 {[%emt 0:01:00] [#]} (35... Qf7 36. Bd3) 36. Be6+ $1 {[%emt 0:00:28][%mdl 512] Weighted Error Value: White=0.06 (flawless) /Black=0.44} 1-0

[Event "DFMM-LV 2023"]
[Site "Braunfels"]
[Date "2023.06.09"]
[Round "1.5"]
[White "Ankerst, Milka"]
[Black "Hess, Olena"]
[Result "0-1"]
[Annotator "TA"]
[ECO "B07"]
[WhiteElo "1923"]
[BlackElo "2078"]
[PlyCount "92"]
[EventDate "2023.06.09"]
[EventType "team-tourn"]
[EventCountry "GER"]
[SourceTitle "playchess.com"]
[Source "ChessBase"]
[SourceQuality "1"]
[TimeControl "40/5400+30:1800+30"]

{[%evp 13,92,20,29,0,0,-9,-10,-16,0,0,5,-31,-29,-31,-31,-33,-30,-43,-37,-45,-45,-62,-39,-61,-38,-42,-21,-35,-25,-31,-27,-43,-19,-23,-29,-57,-47,-50,-50,-60,-45,-41,-34,-107,-108,-114,-118,-187,-177,-309,-239,-270,-270,-437,-424,-433,-404,-727,-699,-685,-666,-736,-556,-689,-455,-477,-228,-197,-197,-305,-306,-298,-187,-245,-214,-313,-271,-313,-298,-29988,-29989]} 1. e4 {[%emt 1:31:00]} d6 {[%emt 0:00:44]} 2. d4 {[%emt 0:00:00]} Nf6 {[%emt 0:00:07]} 3. Nc3 {[%emt 0:00:00]} e5 {[%emt 0:00:15]} 4. dxe5 {[%emt 0:00:00]} dxe5 {[%emt 0:00:06]} 5. Qxd8+ {[%emt 0:00:00]} Kxd8 {[%emt 0:00:02][%cal Be8d8,Bd8c8,Bc8c7][%mdl 32]} 6. Bg5 {[%emt 0:00:00]} Be6 {[%emt 0:00:22]} 7. O-O-O+ {[%emt 0:00:00]} Kc8 {[%emt 0:00:40]} 8. f3 {[%emt 0:00:00] B07: Pirc Defence: Miscellaneous Systems.} Nbd7 {[%emt 0:01:10]} 9. Nge2 {[%emt 0:00:00][%cal Bg1e2,Be2c1,Bc1d3][%mdl 32]} c6 {[%emt 0:05:51]} 10. Kb1 {[%emt 0:00:00] The position is equal.} Kc7 {[%emt 0:04:15] [#]} 11. Nc1 $146 {[%emt 0:00:00]} ({Predecessor:} 11. g3 h6 12. Be3 Bc5 13. Bxc5 Nxc5 14. Bg2 b5 15. Nc1 Rhd8 16. N3e2 Bc4 17. b3 Bxe2 18. Nxe2 {½-½ Letay,G (1996)-Langer,C (2129) Budapest FS09 FM-A 2012 (6)}) 11... Nc5 {[%emt 0:02:04]} 12. Nd3 {[%emt 0:00:00]} Nfd7 {[%emt 0:00:24]} 13. Be2 {[%emt 0:00:00]} f6 {[%emt 0:00:57]} 14. Be3 {[%emt 0:00:00]} b5 {[%emt 0:00:49]} 15. Nxc5 {[%emt 0:00:00]} Nxc5 {[%emt 0:00:11]} 16. a3 {[%emt 0:00:00]} a5 {[%emt 0:00:45]} 17. b3 {[%emt 0:00:00]} Be7 {[%emt 0:11:50]} 18. Na2 {[%emt 0:00:00]} Rhb8 {[%emt 0:02:13]} (18... Bf7 {with more complications.} 19. Kb2 Ne6 20. Nc3 Rhd8) 19. Kb2 {[%emt 0:00:00]} Nd7 {[%emt 0:07:56]} (19... Na6 {keeps more tension.} 20. g3 b4 21. a4 Bc5) 20. g3 {[%emt 0:00:00]} (20. Nc3 {seems wilder.} Nb6 21. h4 a4 22. b4) 20... g6 {[%emt 0:10:38]} 21. h4 {[%emt 0:00:00]} h5 {[%emt 0:14:52]} 22. Nc1 {[%emt 0:00:00]} a4 {[%emt 0:10:13]} 23. b4 {[%emt 0:00:00]} Nb6 {[%emt 0:00:38]} 24. Bxb6+ {[%emt 0:00:00]} Kxb6 {[%emt 0:04:52]} 25. Nd3 {[%emt 0:00:00]} Rd8 {[%emt 0:03:49]} 26. f4 {[%emt 0:00:00]} exf4 {[%emt 0:06:29]} 27. gxf4 {[%emt 0:00:00]} Rd4 {[%emt 0:07:25]} 28. Nf2 {[%emt 0:00:00] White is now going downhill.} ({Better is} 28. Rhg1 $15) 28... Rad8 $17 {[%emt 0:00:42] Black is more active.} 29. Rxd4 {[%emt 0:00:00]} Rxd4 {[%emt 0:00:00]} 30. Kc3 {[%emt 0:00:00] Prevents Rd2.} (30. Bd3 $17 {is a better defense.}) 30... c5 $19 {[%emt 0:01:06]} 31. bxc5+ {[%emt 0:00:00]} (31. Nd3 $142) 31... Bxc5 {[%emt 0:00:02] Strongly threatening ...Rd8.} 32. Rb1 {[%emt 0:00:00]} Bc4 {[%emt 0:00:26] A strong pair of Bishops.} 33. Bf3 {[%emt 0:00:00]} (33. Bd3) 33... Rd8 {[%emt 0:00:38]} 34. Nd3 {[%emt 0:00:00]} Bxa3 {[%emt 0:00:18] Threatens to win with ...Bc5.} 35. Nb2 {[%emt 0:02:43]} (35. e5 $142) 35... Bxb2+ {[%emt 0:01:03]} 36. Kxb2 {[%emt 0:01:35][%mdl 4096] Endgame KRB-KRB} b4 {[%emt 0:01:32]} 37. Rg1 {[%emt 0:01:00]} a3+ {[%emt 0:00:41]} 38. Kb1 {[%emt 0:00:22]} Bf7 {[%emt 0:01:39] [#] aiming for ...Rd2.} 39. Re1 {[%emt 0:02:51]} b3 {[%emt 0:00:53]} (39... Rd4 $142 40. Bd1 Bc4) 40. cxb3 {[%emt 0:00:04]} Bxb3 {[%emt 0:00:02] White must now prevent ...Rd3.} 41. e5 {[%emt 0:33:18]} (41. f5 $142) 41... fxe5 {[%emt 0:31:02]} 42. fxe5 {[%emt 0:00:39]} Re8 {[%emt 0:00:00]} 43. Re3 {[%emt 0:00:00] [#]} (43. Rg1 $142) 43... a2+ $1 {[%emt 0:00:00]} 44. Kb2 {[%emt 0:00:00]} (44. Ka1 $142 Be6 45. Rc3) 44... Bf7 {[%emt 0:00:00]} 45. Be2 {[%emt 0:00:00]} Kc5 {[%emt 0:00:00] ( -> ...Rb8+)} 46. Bd1 $2 {[%emt 0:00:00]} (46. Ka1 $19) 46... Rb8+ {[%emt 0:03:49] Weighted Error Value: White=0.59/Black=0.27 (precise)} 0-1